bitfinex-derivatives/quotes_SOLF0:USTF0_20251018
["timestamp","ask_amount","ask_price","bid_price","bid_amount"]
[1760822508951,2.64,186.36,186.29,4.8297]
[1760822509347,4.8279,186.37,186.29,4.8297]
[1760822509547,9.38933112,186.37,186.29,4.8297]
[1760822509848,4.8279,186.37,186.29,4.8297]
[1760822510149,2.64,186.36,186.3,4.8294]
[1760822510346,4.8279,186.37,186.3,4.8294]
[1760822511246,2.64,186.36,186.3,4.8294]
[1760822511447,4.8279,186.37,186.3,4.8294]
[1760822511648,2.64,186.36,186.3,4.8294]
[1760822512158,4.8279,186.37,186.3,4.8294]
[1760822512344,2.64,186.36,186.31,3.3377843]
[1760822512652,2.64,186.4,186.31,3.3377843]
[1760822512953,2.64,186.37,186.31,3.3377843]
[1760822513154,2.64,186.37,186.3,9.9903734]
[1760822513747,4.8273,186.39,186.31,4.8291]
[1760822513950,2.64,186.37,186.31,4.8291]
[1760822514151,2.64,186.38,186.31,4.8291]
[1760822514354,2.64,186.37,186.31,4.8291]
[1760822514552,2.64,186.39,186.31,4.8291]
[1760822514747,4.57054159,186.38,186.31,4.8291]
[1760822514948,9.39804159,186.38,186.31,4.8291]
[1760822515254,2.64,186.37,186.31,4.8291]
[1760822515654,9.39804159,186.38,186.31,4.8291]
[1760822515655,4.8275,186.38,186.31,4.8291]
[1760822516053,2.64,186.37,186.31,4.8291]
[1760822516857,9.39804159,186.38,186.31,4.8291]
[1760822517047,2.64,186.37,186.31,4.8291]
[1760822517254,2.64,186.35,186.29,9.9903734]
[1760822519051,4.8278,186.37,186.3,4.8294]
[1760822519354,2.64,186.36,186.3,4.8294]
[1760822520061,2.64,186.36,186.3,14.8197734]
[1760822520355,2.64,186.39,186.3,9.9903734]
[1760822520955,7.21067095,186.39,186.3,13.3281577]
[1760822521155,7.21067095,186.39,186.33,6.69798642]
[1760822521356,2.64,186.39,186.33,6.69798642]
[1760822522157,7.21067095,186.39,186.33,6.69798642]
[1760822522461,7.21067095,186.39,186.3,3.3377843]
[1760822522462,2.64,186.39,186.34,6.69798642]
[1760822523057,2.64,186.39,186.35,6.69798642]
[1760822523257,2.64,186.4,186.35,6.69798642]
[1760822523460,9.39757095,186.41,186.35,6.69798642]
[1760822523661,2.64,186.4,186.35,6.69798642]
[1760822523864,4.8269,186.41,186.35,6.69798642]
[1760822524067,2.64,186.4,186.35,6.69798642]
[1760822524266,4.8269,186.41,186.34,11.52638642]
[1760822524465,2.64,186.4,186.34,11.52638642]
[1760822529466,8.1642843,186.42,186.34,6.69798642]
[1760822529764,8.1642843,186.42,186.32,4.8289]
[1760822529765,2.86,186.38,186.32,6.69798642]
[1760822531171,8.1651843,186.39,186.32,6.69798642]
[1760822531669,2.86,186.38,186.32,6.69798642]
[1760822534673,2.86,186.38,186.31,11.52708642]
[1760822536969,12.71278452,186.39,186.31,11.52708642]
[1760822537164,8.1651843,186.39,186.31,11.52708642]
[1760822538367,8.1651843,186.39,186.32,6.69798642]
[1760822538574,2.75,186.38,186.32,6.69798642]
[1760822539078,8.1651843,186.39,186.32,6.69798642]
[1760822539572,2.75,186.38,186.32,6.69798642]
[1760822542871,2.75,186.38,186.31,4.8291]
[1760822542872,7.5768,186.41,186.33,6.69798642]
[1760822543065,7.5768,186.41,186.34,6.69798642]
[1760822543774,2.75,186.41,186.34,11.52628642]
[1760822545774,2.75,186.41,186.35,6.69798642]
[1760822546572,4.8266,186.42,186.36,6.69798642]
[1760822546772,2.75,186.4,186.36,6.69798642]
[1760822547676,2.75,186.4,186.34,4.8283]
[1760822547677,2.75,186.43,186.37,6.69798642]
[1760822548175,2.75,186.43,186.37,11.52558642]
[1760822548376,2.75,186.43,186.37,4.8276]
[1760822548571,4.54738695,186.47,186.38,4.8273]
[1760822548778,4.825,186.48,186.4,6.69798642]
[1760822548779,2.75,186.46,186.4,6.69798642]
[1760822550477,2.75,186.46,186.4,11.52478642]
[1760822551276,2.75,186.49,186.4,11.52478642]
[1760822553576,2.75,186.49,186.43,4.8261]
[1760822554782,2.75,186.49,186.41,11.52458642]
[1760822555281,2.75,186.49,186.41,4.8266]
[1760822558385,2.75,186.49,186.42,4.8263]
[1760822559982,2.75,186.49,186.43,4.826]
[1760822560883,2.75,186.49,186.39,3.3377843]
[1760822560884,25.0,186.5,186.44,4.8257]
[1760822561585,25.0,186.5,186.45,4.8255]
[1760822562187,27.75,186.5,186.45,4.8255]
[1760822563187,27.75,186.5,186.46,4.8252]
[1760822563987,25.0,186.5,186.46,4.8252]
[1760822564188,27.75,186.5,186.46,4.8252]
[1760822564489,2.75,186.49,186.46,4.8252]
[1760822564880,25.0,186.5,186.46,4.8252]
[1760822565788,25.0,186.5,186.39,3.3377843]
[1760822565789,27.75,186.5,186.47,4.825]
[1760822567090,2.75,186.5,186.47,4.825]
[1760822567293,47.6977843,186.54,186.47,4.825]
[1760822567491,47.6977843,186.54,186.45,4.8255]
[1760822567691,2.81,186.53,186.45,4.8255]
[1760822567887,47.6977843,186.54,186.45,4.8255]
[1760822568094,2.81,186.53,186.45,4.8255]
[1760822568392,47.6977843,186.54,186.45,4.8255]
[1760822568582,2.81,186.52,186.45,4.8255]
[1760822568786,47.6977843,186.54,186.45,4.8255]
[1760822568985,44.36,186.54,186.46,4.8252]
[1760822569192,2.81,186.53,186.46,4.8252]
[1760822569690,44.36,186.54,186.46,4.8252]
[1760822569886,44.36,186.54,186.43,4.8259]
[1760822570088,2.81,186.53,186.42,3.3377843]
[1760822570985,7.6337,186.53,186.44,4.8258]
[1760822571191,2.81,186.52,186.44,4.8258]
[1760822571992,4.8237,186.53,186.44,4.8258]
[1760822572195,2.81,186.51,186.44,4.8258]
[1760822572894,2.81,186.51,186.45,4.8255]
[1760822576494,2.81,186.52,186.45,4.8255]
[1760822576695,2.81,186.51,186.45,4.8255]
[1760822578690,2.81,186.52,186.46,4.8253]
[1760822579397,4.8237,186.53,186.46,4.8253]
[1760822579594,2.81,186.52,186.46,4.8253]
[1760822579789,4.8237,186.53,186.46,4.8253]
[1760822580097,2.81,186.52,186.46,4.8253]
[1760822580394,4.8237,186.53,186.46,4.8253]
[1760822580589,2.81,186.52,186.46,4.8253]
[1760822580786,2.81,186.51,186.46,4.8253]
[1760822580987,2.81,186.52,186.46,4.8253]
[1760822581490,4.8237,186.53,186.46,4.8253]
[1760822581694,2.81,186.52,186.46,4.8253]
[1760822581894,2.81,186.53,186.47,4.825]
[1760822583193,2.81,186.53,186.48,4.8248]
[1760822583493,2.81,186.53,186.44,6.69798642]
[1760822585390,2.81,186.53,186.45,6.69798642]
[1760822585993,3.3377843,186.55,186.48,4.8246]
[1760822586299,2.81,186.54,186.48,4.8246]
[1760822586997,2.62,186.54,186.45,6.69798642]
[1760822587894,2.62,186.54,186.49,4.8244]
[1760822588293,3.3377843,186.55,186.49,4.8244]
[1760822588891,2.62,186.54,186.49,4.8244]
[1760822589095,3.3377843,186.55,186.49,4.8244]
[1760822589589,2.62,186.58,186.49,4.8244]
[1760822589791,2.62,186.56,186.49,4.8244]
[1760822590494,3.3377843,186.57,186.49,4.8244]
[1760822590693,2.62,186.56,186.49,4.8244]
[1760822590891,3.3377843,186.57,186.49,4.8244]
[1760822591198,2.62,186.56,186.49,4.8244]
[1760822591600,3.3377843,186.57,186.49,4.8244]
[1760822592195,2.62,186.56,186.49,4.8244]
[1760822592996,3.3377843,186.57,186.49,4.8244]
[1760822593197,2.62,186.56,186.49,4.8244]
[1760822593393,3.3377843,186.57,186.49,4.8244]
[1760822593598,2.62,186.56,186.49,4.8244]
[1760822593799,3.3377843,186.57,186.49,4.8244]
[1760822594497,2.62,186.56,186.49,4.8244]
[1760822595697,3.3377843,186.57,186.49,4.8244]
[1760822595894,2.62,186.56,186.49,4.8244]
[1760822596098,3.3377843,186.57,186.49,4.8244]
[1760822596398,3.3377843,186.57,186.46,6.69798642]
[1760822596399,3.3377843,186.51,186.46,6.69798642]
[1760822596601,2.81,186.5,186.45,6.69798642]
[1760822596994,3.3377843,186.51,186.45,6.69798642]
[1760822597195,2.81,186.5,186.45,6.69798642]
[1760822597705,3.3377843,186.51,186.45,6.69798642]
[1760822597901,2.81,186.5,186.45,6.69798642]
[1760822598394,3.3377843,186.51,186.45,6.69798642]
[1760822599200,2.81,186.51,186.45,6.69798642]
[1760822599401,8.1617843,186.52,186.45,6.69798642]
[1760822599995,2.81,186.51,186.45,6.69798642]
[1760822600802,8.1617843,186.52,186.45,6.69798642]
[1760822601002,2.81,186.51,186.45,6.69798642]
[1760822601210,8.1617843,186.52,186.45,6.69798642]
[1760822601907,2.81,186.51,186.44,6.69798642]
[1760822602302,12.78089762,186.52,186.44,6.69798642]
[1760822602497,2.81,186.5,186.44,6.69798642]
[1760822602699,2.81,186.51,186.44,6.69798642]
[1760822602907,2.81,186.5,186.44,6.69798642]
[1760822604513,2.81,186.5,186.45,6.69798642]
[1760822604711,2.81,186.51,186.45,6.69798642]
[1760822605306,4.824,186.52,186.45,6.69798642]
[1760822605714,2.81,186.51,186.45,6.69798642]
[1760822606119,4.824,186.52,186.45,6.69798642]
[1760822606315,2.81,186.51,186.45,6.69798642]
[1760822606712,7.6342,186.51,186.45,6.69798642]
[1760822606917,4.8242,186.51,186.45,6.69798642]
[1760822607124,2.81,186.5,186.45,6.69798642]
[1760822607314,4.8242,186.51,186.45,6.69798642]
[1760822607618,2.81,186.5,186.45,6.69798642]
[1760822608020,2.81,186.5,186.44,6.69798642]
[1760822608222,2.81,186.49,186.44,6.69798642]
[1760822608518,2.81,186.5,186.44,6.69798642]
[1760822609619,4.61974712,186.52,186.44,6.69798642]
[1760822609823,27.81,186.45,186.44,6.69798642]
[1760822610718,27.81,186.45,186.43,6.69798642]
[1760822610925,2.81,186.44,186.42,6.69798642]
[1760822612024,25.0,186.45,186.41,6.69798642]
[1760822612322,25.0,186.45,186.4,6.69798642]
[1760822612522,2.81,186.44,186.4,6.69798642]
[1760822612922,25.0,186.45,186.42,6.69798642]
[1760822614122,25.0,186.45,186.44,6.69798642]
[1760822614321,25.0,186.45,186.42,13.3281577]
[1760822614819,25.0,186.45,186.43,9.9903734]
[1760822615728,24.7995402,186.45,186.44,9.9903734]
[1760822616623,24.7995402,186.45,186.43,4.826]
[1760822617730,2.81,186.51,186.44,1.08]
[1760822618027,2.81,186.51,186.48,6.67638138]
[1760822618217,2.81,186.51,186.49,6.67638138]
[1760822618421,36.6401843,186.58,186.5,6.67638138]
[1760822618621,8.1601843,186.58,186.5,6.67638138]
[1760822619126,2.81,186.57,186.5,6.67638138]
[1760822619322,8.1601843,186.58,186.5,6.67638138]
[1760822619521,4.8224,186.58,186.5,6.67638138]
[1760822619818,2.81,186.56,186.5,6.67638138]
[1760822620026,2.81,186.57,186.5,6.67638138]
[1760822620325,2.81,186.6,186.53,6.67638138]
[1760822620524,4.8217,186.61,186.53,6.67638138]
[1760822620725,2.81,186.59,186.53,6.67638138]
[1760822621436,2.81,186.59,186.52,6.67638138]
[1760822621824,2.81,186.59,186.48,3.3377843]
[1760822621825,2.81,186.59,186.53,6.67638138]
[1760822623335,2.81,186.59,186.52,6.67638138]
[1760822625337,2.81,186.59,186.52,11.49998138]
[1760822629336,2.81,186.59,186.52,4.8236]
[1760822629638,2.81,186.59,186.52,11.49998138]
[1760822632439,2.81,186.59,186.52,4.8236]
[1760822633143,2.81,186.59,186.53,4.8234]
[1760822633341,89.95437749,186.62,186.53,6.67638138]
[1760822633342,2.8,186.61,186.53,6.67638138]
[1760822633643,2.8,186.61,186.54,6.67638138]
[1760822634844,2.8,186.61,186.55,4.8229]
[1760822636737,3.3377843,186.61,186.53,11.49988138]
[1760822637039,2.8,186.6,186.53,11.49988138]
[1760822637241,2.8,186.6,186.54,4.8232]
[1760822638539,2.8,186.6,186.55,4.8229]
[1760822639037,89.95437749,186.62,186.55,4.8229]
[1760822639337,2.8,186.61,186.55,4.8229]
[1760822640444,89.95437749,186.62,186.55,4.8229]
[1760822640638,2.8,186.61,186.55,4.8229]
[1760822640845,3.3377843,186.6,186.52,6.67638138]
[1760822641044,3.3377843,186.6,186.51,6.67638138]
[1760822641241,2.8,186.59,186.52,6.67638138]
[1760822641545,2.8,186.59,186.53,4.8234]
[1760822641746,3.3377843,186.6,186.51,6.67638138]
[1760822642243,2.8,186.59,186.52,4.8237]
[1760822642941,3.3377843,186.6,186.5,6.67638138]
[1760822642942,8.1596843,186.6,186.5,6.67638138]
[1760822643143,2.8,186.59,186.5,6.67638138]
[1760822643342,2.8,186.56,186.5,6.67638138]
[1760822643543,3.3377843,186.57,186.5,6.67638138]
[1760822643740,2.8,186.56,186.49,6.67638138]
[1760822643941,2.8,186.56,186.49,11.50088138]
[1760822646534,2.8,186.56,186.48,6.67638138]
[1760822646949,3.3377843,186.57,186.48,6.67638138]
[1760822647445,2.8,186.56,186.48,6.67638138]
[1760822647643,3.3377843,186.57,186.48,6.67638138]
[1760822648039,3.3377843,186.57,186.47,11.50138138]
[1760822648236,2.8,186.56,186.47,11.50138138]
[1760822648841,3.3377843,186.57,186.47,11.50138138]
[1760822649038,2.8,186.55,186.47,11.50138138]
[1760822649244,2.8,186.53,186.46,6.67638138]
[1760822649650,2.8,186.53,186.47,6.67638138]
[1760822650950,8.1604843,186.57,186.48,4.8247]
[1760822651147,2.8,186.56,186.48,4.8247]
[1760822651347,8.1604843,186.57,186.48,4.8247]
[1760822651545,4.8229,186.56,186.48,4.8247]
[1760822651753,2.8,186.54,186.47,6.67638138]
[1760822652047,2.8,186.55,186.47,6.67638138]
[1760822652249,4.8229,186.56,186.47,6.67638138]
[1760822652450,2.8,186.55,186.47,6.67638138]
[1760822652647,2.8,186.54,186.47,6.67638138]
[1760822653051,2.8,186.54,186.47,11.50138138]
[1760822653546,4.8229,186.56,186.47,11.50138138]
[1760822653742,2.8,186.54,186.47,11.50138138]
[1760822655353,2.8,186.54,186.48,6.67638138]
[1760822657049,2.83,186.55,186.48,6.67638138]
[1760822657356,2.83,186.55,186.47,4.825]
[1760822657357,2.83,186.55,186.49,6.67638138]
[1760822657554,2.83,186.54,186.49,6.67638138]
[1760822657756,4.8229,186.56,186.49,6.67638138]
[1760822658054,2.83,186.55,186.49,6.67638138]
[1760822658257,4.8229,186.56,186.49,6.67638138]
[1760822658555,2.83,186.55,186.49,6.67638138]
[1760822658757,4.8229,186.56,186.49,6.67638138]
[1760822659457,2.83,186.54,186.49,6.67638138]
[1760822659656,2.83,186.55,186.49,6.67638138]
[1760822659852,4.8229,186.56,186.49,6.67638138]
[1760822660352,2.83,186.54,186.5,6.67638138]
[1760822660557,2.83,186.56,186.52,6.67638138]
[1760822660951,4.8224,186.58,186.52,6.67638138]
[1760822661553,2.83,186.57,186.52,6.67638138]
[1760822662158,4.8224,186.58,186.52,6.67638138]
[1760822663063,2.83,186.57,186.54,4.8232]
[1760822663356,2.83,186.57,186.54,11.49958138]
[1760822663962,2.83,186.61,186.55,11.49928138]
[1760822669764,2.83,186.61,186.55,6.67638138]
[1760822673371,94.77567749,186.62,186.55,6.67638138]
[1760822673867,44.28,186.61,186.55,6.67638138]
[1760822674070,2.83,186.6,186.55,6.67638138]
[1760822674457,44.28,186.61,186.55,6.67638138]
[1760822675272,2.83,186.6,186.55,6.67638138]
[1760822675469,44.28,186.61,186.55,6.67638138]
[1760822675667,2.83,186.6,186.55,6.67638138]
[1760822676067,44.28,186.61,186.55,6.67638138]
[1760822676267,2.83,186.6,186.55,6.67638138]
[1760822676467,44.28,186.61,186.55,6.67638138]
[1760822677665,2.83,186.6,186.55,6.67638138]
[1760822677874,49.1017,186.61,186.54,6.67638138]
[1760822678368,2.83,186.6,186.54,6.67638138]
[1760822678561,49.1017,186.61,186.54,6.67638138]
[1760822678965,2.83,186.6,186.54,6.67638138]
[1760822679360,3.3377843,186.6,186.55,6.67638138]
[1760822679561,2.83,186.59,186.52,6.67638138]
[1760822679774,3.3377843,186.6,186.52,6.67638138]
[1760822679967,2.83,186.56,186.52,6.67638138]
[1760822680169,2.83,186.55,186.52,6.67638138]
[1760822680971,2.83,186.56,186.52,6.67638138]
[1760822681769,4.8226,186.57,186.52,6.67638138]
[1760822681973,4.8226,186.57,186.51,6.67638138]
[1760822682173,2.83,186.55,186.51,6.67638138]
[1760822682375,2.83,186.55,186.52,6.67638138]
[1760822682569,4.8226,186.57,186.52,6.67638138]
[1760822683075,4.8229,186.56,186.51,6.67638138]
[1760822683478,2.83,186.54,186.51,6.67638138]
[1760822686873,2.83,186.58,186.53,6.67638138]
[1760822687669,2.83,186.58,186.54,6.67638138]
[1760822693695,3.3377843,186.63,186.56,6.67638138]
[1760822693890,3.3377843,186.63,186.57,6.67638138]
[1760822693891,6.1677843,186.63,186.57,6.67638138]
[1760822694087,2.83,186.71,186.57,6.67638138]
[1760822694281,2.83,186.71,186.56,4.8227]
[1760822694282,8.1578843,186.67,186.59,6.67638138]
[1760822694486,2.83,186.66,186.59,6.67638138]
[1760822694680,8.1578843,186.67,186.59,6.67638138]
[1760822694886,2.83,186.66,186.59,6.67638138]
[1760822695082,2.83,186.63,186.59,6.67638138]
[1760822695283,2.83,186.63,186.58,6.67638138]
[1760822695993,3.3377843,186.64,186.58,6.67638138]
[1760822696195,2.83,186.63,186.58,6.67638138]
[1760822696388,2.83,186.64,186.58,6.67638138]
[1760822697385,8.1583843,186.65,186.58,6.67638138]
[1760822697593,2.83,186.64,186.58,6.67638138]
[1760822700196,2.83,186.64,186.58,11.49848138]
[1760822700404,2.83,186.67,186.6,6.67638138]
[1760822700799,2.83,186.67,186.61,6.67638138]
[1760822701900,2.83,186.67,186.62,6.67638138]
[1760822702390,2.83,186.67,186.61,11.49778138]
[1760822703596,2.83,186.67,186.62,6.67638138]
[1760822705003,2.83,186.71,186.64,6.67638138]
[1760822705201,2.83,186.71,186.66,6.67638138]
[1760822705501,2.83,186.76,186.66,6.67638138]
[1760822705801,7.648,186.75,186.66,6.67638138]
[1760822706196,2.83,186.71,186.64,6.67638138]
[1760822706395,3.3377843,186.72,186.63,6.67638138]
[1760822706599,2.77,186.71,186.63,6.67638138]
[1760822708999,2.77,186.71,186.63,11.49718138]
[1760822710098,2.77,186.71,186.64,4.8206]
[1760822710798,2.77,186.71,186.65,11.49668138]
[1760822710998,2.77,186.74,186.65,6.67638138]
[1760822711397,2.77,186.74,186.64,3.3377843]
[1760822711398,2.77,186.74,186.64,10.01416568]
[1760822712003,2.77,186.74,186.66,4.8201]
[1760822712204,2.77,186.74,186.64,10.01416568]
[1760822713003,2.77,186.74,186.68,4.8196]
[1760822725817,8.1554843,186.76,186.68,4.8196]
[1760822726016,2.64,186.75,186.68,4.8196]
[1760822726212,8.1554843,186.76,186.68,4.8196]
[1760822727114,3.3377843,186.76,186.66,4.8201]
[1760822727305,3.3377843,186.73,186.61,10.01416568]
[1760822727513,2.64,186.72,186.61,10.01416568]
[1760822727816,3.3377843,186.73,186.61,10.01416568]
[1760822728017,2.64,186.72,186.61,10.01416568]
[1760822728212,3.3377843,186.73,186.61,10.01416568]
[1760822728617,2.64,186.72,186.61,10.01416568]
[1760822729011,3.3377843,186.73,186.64,4.8206]
[1760822729214,2.64,186.72,186.64,4.8206]
[1760822729413,3.3377843,186.73,186.64,4.8206]
[1760822729615,2.64,186.72,186.62,4.8212]
[1760822730021,3.3377843,186.73,186.62,4.8212]
[1760822730613,2.64,186.72,186.62,4.8212]
[1760822730820,2.64,186.69,186.62,4.8212]
[1760822732123,3.3377843,186.7,186.62,4.8212]
[1760822732326,2.64,186.69,186.62,4.8212]
[1760822734620,2.64,186.69,186.61,6.67638138]
[1760822734621,8.1571843,186.7,186.61,6.67638138]
[1760822734830,2.64,186.69,186.6,6.67638138]
[1760822735426,8.1571843,186.7,186.6,6.67638138]
[1760822736025,2.64,186.69,186.61,4.8213]
[1760822736220,2.64,186.69,186.61,11.49768138]
[1760822736425,8.1571843,186.7,186.61,11.49768138]
[1760822737227,2.64,186.69,186.61,11.49768138]
[1760822737433,2.64,186.69,186.62,6.67638138]
[1760822737727,8.1571843,186.7,186.62,6.67638138]
[1760822737926,2.64,186.69,186.62,6.67638138]
[1760822738129,8.1571843,186.7,186.62,6.67638138]
[1760822738523,2.64,186.69,186.62,6.67638138]
[1760822738822,8.1571843,186.7,186.62,6.67638138]
[1760822739228,2.64,186.69,186.62,6.67638138]
[1760822739426,8.1571843,186.7,186.62,6.67638138]
[1760822739924,2.64,186.69,186.62,11.49738138]
[1760822740331,8.1571843,186.7,186.63,6.67638138]
[1760822740521,2.64,186.69,186.63,6.67638138]
[1760822740720,8.1571843,186.7,186.63,6.67638138]
[1760822740923,8.1571843,186.7,186.58,6.67638138]
[1760822740924,2.64,186.65,186.58,6.67638138]
[1760822741224,4.8204,186.66,186.58,6.67638138]
[1760822741426,2.64,186.64,186.58,6.67638138]
[1760822741732,4.8206,186.65,186.58,6.67638138]
[1760822741933,2.64,186.64,186.58,6.67638138]
[1760822742628,2.64,186.69,186.58,6.67638138]
[1760822742833,2.64,186.69,186.63,6.67638138]
[1760822743224,2.64,186.71,186.62,6.67638138]
[1760822743428,2.64,186.72,186.62,6.67638138]
[1760822743623,4.8191,186.71,186.62,11.49748138]
[1760822743832,2.64,186.69,186.62,11.49748138]
[1760822744328,4.8191,186.71,186.62,11.49748138]
[1760822744329,7.4593,186.7,186.62,11.49748138]
[1760822744528,2.64,186.69,186.63,6.67638138]
[1760822744934,4.8193,186.7,186.63,6.67638138]
[1760822745134,4.8196,186.69,186.63,6.67638138]
[1760822745332,4.8196,186.69,186.62,11.49748138]
[1760822745636,2.64,186.67,186.62,6.67638138]
[1760822745840,4.8199,186.68,186.6,6.67638138]
[1760822746034,2.64,186.69,186.6,6.67638138]
[1760822746433,4.73646964,186.7,186.6,6.67638138]
[1760822746629,2.68,186.69,186.6,6.67638138]
[1760822746841,3.3377843,186.7,186.6,6.67638138]
[1760822747039,2.68,186.66,186.6,6.67638138]
[1760822749342,2.68,186.65,186.59,11.49828138]
[1760822749733,2.68,186.65,186.59,6.67638138]
[1760822753042,8.1581843,186.66,186.57,6.67638138]
[1760822753043,2.68,186.62,186.57,6.67638138]
[1760822753247,2.68,186.62,186.55,6.67638138]
[1760822754548,6.0177843,186.62,186.55,6.67638138]
[1760822755948,10.8391843,186.62,186.55,6.67638138]
[1760822756137,10.8391843,186.62,186.51,4.824]
[1760822756138,8.1591843,186.62,186.54,6.67638138]
[1760822756344,2.68,186.61,186.54,6.67638138]
[1760822758050,8.1591843,186.62,186.54,6.67638138]
[1760822758246,4.8217,186.61,186.53,6.67638138]
[1760822758440,2.68,186.59,186.53,6.67638138]
[1760822759346,2.68,186.59,186.52,6.67638138]
[1760822759547,6.0177843,186.59,186.52,6.67638138]
[1760822759852,2.68,186.58,186.52,6.67638138]
[1760822762946,3.3377843,186.59,186.52,6.67638138]
[1760822764751,6.0177843,186.59,186.52,6.67638138]
[1760822765343,2.68,186.59,186.52,6.67638138]
[1760822765547,2.68,186.59,186.53,6.67638138]
[1760822766953,2.68,186.59,186.53,11.49978138]
[1760822769951,2.68,186.59,186.54,6.67638138]
[1760822770846,2.77,186.6,186.54,6.67638138]
[1760822772448,2.77,186.6,186.55,6.67638138]
[1760822772643,4.8205,186.65,186.56,6.67638138]
[1760822772848,4.8205,186.65,186.46,9.6505]
[1760822772849,4.8205,186.65,186.57,6.67638138]
[1760822773048,3.3377843,186.65,186.56,6.67638138]
[1760822773248,2.77,186.64,186.55,6.67638138]
[1760822773953,4.8209,186.64,186.55,6.67638138]
[1760822774153,2.77,186.63,186.55,6.67638138]
[1760822774353,4.8209,186.64,186.55,6.67638138]
[1760822774552,2.77,186.62,186.55,6.67638138]
[1760822774954,2.77,186.62,186.55,11.49928138]
[1760822776449,2.77,186.62,186.56,6.67638138]
[1760822777656,2.77,186.62,186.56,11.49898138]
[1760822777852,2.63,186.65,186.56,6.67638138]
[1760822778057,3.3377843,186.68,186.56,6.67638138]
[1760822778754,3.3377843,186.68,186.57,6.67638138]
[1760822779055,2.63,186.64,186.57,11.49878138]
[1760822779649,2.63,186.64,186.57,6.67638138]
[1760822779854,2.63,186.64,186.56,6.67638138]
[1760822780256,2.63,186.69,186.59,6.67638138]
[1760822780455,2.63,186.69,186.6,6.67638138]
[1760822781252,2.63,186.69,186.61,3.3377843]
[1760822781452,2.63,186.69,186.61,10.01416568]
[1760822782047,2.63,186.69,186.63,4.8208]
[1760822783254,2.63,186.69,186.63,11.49718138]
[1760822784353,4.819,186.71,186.64,6.67638138]
[1760822784554,2.63,186.7,186.64,6.67638138]
[1760822785157,2.63,186.7,186.63,11.49718138]
[1760822785359,2.63,186.7,186.64,6.67638138]
[1760822786264,2.63,186.7,186.63,11.49718138]
[1760822787560,2.63,186.7,186.64,6.67638138]
[1760822791262,2.63,186.7,186.63,11.49718138]
[1760822791964,2.63,186.7,186.64,6.67638138]
[1760822792265,2.63,186.7,186.63,11.49718138]
[1760822793364,2.63,186.7,186.64,4.8206]
[1760822793565,7.4485,186.73,186.64,3.3377843]
[1760822793868,7.96965753,186.76,186.63,6.67638138]
[1760822794065,2.63,186.75,186.63,6.67638138]
[1760822794261,4.8185,186.73,186.64,4.8206]
[1760822794467,2.63,186.72,186.64,4.8206]
[1760822795268,2.63,186.72,186.64,11.49698138]
[1760822795865,2.63,186.72,186.65,4.8203]
[1760822796573,2.63,186.72,186.66,4.8201]
[1760822799973,2.63,186.72,186.67,4.8198]
[1760822802176,4.818,186.75,186.67,4.8198]
[1760822802369,2.63,186.74,186.67,4.8198]
[1760822803876,2.63,186.74,186.68,4.8195]
[1760822807379,2.69,186.75,186.68,4.8195]
[1760822807979,2.69,186.74,186.68,4.8195]
[1760822810074,2.69,186.75,186.68,4.8195]
[1760822810479,2.69,186.74,186.68,4.8195]
[1760822811779,2.69,186.73,186.68,4.8195]
[1760822811981,4.8181,186.75,186.68,4.8195]
[1760822812283,2.69,186.74,186.68,4.8195]
[1760822812578,2.69,186.73,186.68,4.8195]
[1760822812880,2.69,186.74,186.68,4.8195]
[1760822814480,4.8181,186.75,186.68,4.8195]
[1760822814678,2.69,186.74,186.68,4.8195]